bitfinex/quotes_SOLUSD_20250902
["timestamp","ask_amount","ask_price","bid_price","bid_amount"]
[1756829754718,8.25969491,202.11,202.05,5.61923422]
[1756829754900,0.67,202.11,202.05,13.87895406]
[1756829755091,8.92969491,202.11,202.05,13.87895406]
[1756829755414,8.25969491,202.08,202.01,31.02507499]
[1756829755599,8.25969491,202.1,202.04,8.25969491]
[1756829755801,8.25969491,202.1,202.05,8.25969491]
[1756829756000,8.92969491,202.1,202.05,8.25969491]
[1756829756315,8.25969491,202.09,202.03,8.25969491]
[1756829756629,8.25969491,202.07,202.0,5.62048314]
[1756829756794,8.25969491,202.06,202.0,5.62048314]
[1756829756994,8.25969491,202.06,202.0,13.88017805]
[1756829757410,8.25969491,202.06,201.95,4.04118208]
[1756829757411,8.25969491,202.04,201.98,8.25969491]
[1756829757699,0.67,202.05,201.98,8.25969491]
[1756829757912,40.04,202.09,202.03,8.25969491]
[1756829758112,8.92969491,202.1,202.04,8.25969491]
[1756829758425,0.67,202.09,202.03,8.25969491]
[1756829758594,8.92969491,202.09,202.03,8.25969491]
[1756829758796,8.92969491,202.09,202.04,8.25969491]
[1756829758999,0.67,202.08,202.04,8.25969491]
[1756829759203,0.67,202.08,202.04,4.94947335]
[1756829759400,0.67,202.08,202.04,13.20916826]
[1756829759606,0.67,202.08,202.04,17.38536154]
[1756829759806,0.67,202.08,202.04,4.94947335]
[1756829760006,0.67,202.08,202.03,4.9497504]
[1756829760204,0.67,202.07,201.96,13.59559401]
[1756829760401,12.43588819,202.03,201.97,38.43588819]
[1756829760891,0.67,202.05,201.99,12.43588819]
[1756829761098,12.43588819,202.07,202.01,12.43588819]
[1756829761292,40.04,202.08,202.03,12.43588819]
[1756829761512,0.67,202.08,202.03,12.43588819]
[1756829761806,0.67,202.08,202.04,0.03]
[1756829762209,13.10588819,202.07,202.04,0.03]
[1756829762409,12.43588819,202.05,202.04,0.03]
[1756829762805,13.39021133,202.05,202.04,0.03]
[1756829762997,18.33948131,202.05,202.04,0.03]
[1756829763629,32.07723689,202.05,202.04,0.03]
[1756829763800,19.35702556,202.05,202.04,0.03]
[1756829764007,31.79291375,202.05,202.04,0.03]
[1756829764805,40.71,202.05,202.04,0.03]
[1756829765125,53.14588819,202.05,202.04,0.03]
[1756829765428,71.83291375,202.05,202.04,0.03]
[1756829765626,31.79291375,202.05,202.04,0.03]
[1756829765832,72.11723689,202.05,202.04,0.03]
[1756829766121,5.61926998,202.05,202.04,0.03]
[1756829766318,58.09515817,202.05,202.04,0.03]
[1756829766522,45.65926998,202.05,202.04,0.03]
[1756829766696,58.09515817,202.05,202.04,0.03]
[1756829768632,0.67,202.08,202.04,0.03]
[1756829768807,12.43588819,202.08,202.04,0.03]
[1756829769009,40.04,202.07,202.04,13.13588819]
[1756829769201,40.04,202.06,202.04,13.13588819]
[1756829769407,40.71,202.06,202.04,0.03]
[1756829769728,40.04,202.06,202.04,0.03]
[1756829769900,13.10588819,202.05,202.04,0.03]
[1756829770616,40.71,202.05,202.04,0.03]
[1756829770925,53.14588819,202.05,202.04,0.03]
[1756829771114,52.47588819,202.05,202.04,0.03]
[1756829771315,5.65856812,202.08,202.04,0.03]
[1756829771525,52.47588819,202.07,202.04,0.03]
[1756829771730,12.43588819,202.05,202.04,0.03]
[1756829772237,13.14588819,202.05,202.04,0.03]
[1756829773043,13.43021133,202.05,202.04,0.03]
[1756829773227,27.16796691,202.05,202.04,0.03]
[1756829773411,27.16796691,202.05,202.04,1e-08]
[1756829774133,32.11723689,202.05,202.04,1e-08]
[1756829774626,72.15723689,202.05,202.04,1e-08]
[1756829776108,72.15723689,202.05,202.01,1e-08]
[1756829776109,26.28432314,202.02,202.01,1e-08]
[1756829776331,91.19609952,202.02,202.01,1e-08]
[1756829776530,105.6438551,202.02,202.01,1e-08]
[1756829777832,26.0,201.95,201.94,0.03]
[1756829778001,97.32752606,201.95,201.94,0.03]
[1756829778318,98.17968763,201.95,201.94,0.03]
[1756829779607,58.11968763,201.95,201.94,0.03]
[1756829779831,97.46968763,201.95,201.94,0.03]
[1756829780412,57.40968763,201.95,201.94,0.03]
[1756829780632,97.46968763,201.95,201.94,0.03]
[1756829781630,43.67193205,201.95,201.94,0.03]
[1756829781836,12.43588819,201.95,201.94,0.03]
[1756829782133,12.43588819,201.96,201.94,0.73]
[1756829782439,39.59559401,201.92,201.91,0.03]
[1756829782638,92.51796691,201.92,201.91,0.03]
[1756829782818,53.16796691,201.92,201.91,0.03]
[1756829783005,93.22796691,201.92,201.91,0.03]
[1756829783625,53.16796691,201.92,201.91,0.03]
[1756829783829,93.22796691,201.92,201.91,0.03]
[1756829784226,58.12042332,201.92,201.91,0.03]
[1756829784421,98.18042332,201.92,201.91,0.03]
[1756829785129,78.49588819,201.92,201.91,0.03]
[1756829785319,98.18042332,201.92,201.91,0.03]
[1756829787342,13.73775558,201.89,201.85,0.03]
[1756829787539,12.43588819,201.86,201.85,0.03]
[1756829787845,52.49588819,201.86,201.85,0.03]
[1756829788445,40.06,201.86,201.85,0.03]
[1756829788623,12.43588819,201.86,201.85,0.73]
[1756829789018,12.43588819,201.87,201.85,0.73]
[1756829789232,30.95300141,201.9,201.85,0.73]
[1756829789233,30.95300141,201.9,201.86,0.7]
[1756829789433,40.06,201.89,201.87,0.7]
[1756829789643,12.43588819,201.88,201.87,0.7]
[1756829789842,12.43588819,201.88,201.85,0.73]
[1756829790037,40.06,201.87,201.86,0.7]
[1756829790221,12.43588819,201.87,201.86,0.7]
[1756829790422,52.49588819,201.87,201.85,0.03]
[1756829790623,17.38981665,201.86,201.85,0.03]
[1756829790848,4.95392846,201.86,201.85,0.03]
[1756829791051,18.38413979,201.86,201.85,0.03]
[1756829791252,32.12189537,201.86,201.85,0.03]
[1756829791735,72.18189537,201.86,201.85,0.03]
[1756829792351,52.17364377,201.83,201.82,0.03]
[1756829792554,97.18830858,201.83,201.82,0.03]
[1756829792745,71.01466481,201.83,201.82,0.03]
[1756829792932,83.450553,201.83,201.82,0.03]
[1756829793251,40.08,201.83,201.82,0.73]
[1756829793421,17.38984178,201.86,201.82,0.73]
[1756829793628,12.43588819,201.87,201.83,0.7]
[1756829793844,17.38910904,201.89,201.83,13.13588819]
[1756829794049,4.95322085,201.89,201.83,13.13588819]
[1756829794233,40.08,201.88,201.83,13.13588819]
[1756829794544,17.38910904,201.89,201.84,0.7]
[1756829794545,40.08,201.87,201.84,0.7]
[1756829794750,17.38910904,201.89,201.85,0.7]
[1756829794949,40.08,201.88,201.85,0.7]
[1756829795154,40.08,201.87,201.85,0.7]
[1756829795448,52.51588819,201.87,201.82,0.73]
[1756829795654,52.51588819,201.87,201.83,0.7]
[1756829795828,40.08,201.87,201.84,0.7]
[1756829796022,40.08,201.87,201.82,13.16588819]
[1756829796241,40.08,201.86,201.83,0.7]
[1756829796428,40.08,201.86,201.84,0.7]
[1756829796739,17.38910904,201.89,201.85,0.7]
[1756829796938,12.43588819,201.87,201.82,0.03]
[1756829797255,45.74354223,201.88,201.82,0.03]
[1756829797256,12.43588819,201.85,201.82,0.03]
[1756829797439,5.66354223,201.88,201.82,0.03]
[1756829797440,40.08,201.84,201.82,0.03]
[1756829797637,40.08,201.83,201.82,0.73]
[1756829797956,40.79,201.83,201.82,0.03]
[1756829798156,53.22588819,201.83,201.82,0.03]
[1756829799029,58.180553,201.83,201.82,0.03]
[1756829799428,57.75487614,201.83,201.82,0.03]
[1756829799833,53.51021133,201.83,201.82,0.03]
[1756829800043,52.80021133,201.83,201.82,0.03]
[1756829800245,53.22588819,201.83,201.82,0.03]
[1756829800432,93.24796691,201.83,201.82,0.03]
[1756829800944,98.20263172,201.83,201.82,0.03]
[1756829802049,52.45796691,201.81,201.8,0.03]
[1756829802348,66.53796691,201.81,201.79,0.03]
[1756829802555,27.11796691,201.8,201.79,1e-08]
[1756829803084,32.07336829,201.8,201.79,1e-08]
[1756829803257,72.15336829,201.8,201.79,1e-08]
[1756829804058,19.6374801,201.8,201.79,1e-08]
[1756829804231,26.0,201.81,201.79,1e-08]
[1756829804431,17.39059589,201.83,201.79,1e-08]
[1756829804636,40.08,201.82,201.79,13.1558882]
[1756829804830,40.08,201.82,201.79,0.72000001]
[1756829805046,45.03502332,201.82,201.79,0.72000001]
[1756829805247,45.03502332,201.82,201.79,1e-08]
[1756829805453,57.47091151,201.82,201.79,1e-08]
[1756829805637,40.08,201.81,201.79,1e-08]
[1756829806036,40.08,201.8,201.79,0.72000001]
[1756829806358,40.08,201.8,201.79,1e-08]
[1756829806658,52.51588819,201.8,201.79,1e-08]
[1756829806823,52.80021133,201.8,201.79,1e-08]
[1756829807248,45.31972452,201.8,201.79,1e-08]
[1756829807756,40.08,201.8,201.79,1e-08]
[1756829808052,40.08,201.8,201.79,0.72000001]
[1756829808456,40.08,201.8,201.79,1e-08]
[1756829809429,45.03540138,201.8,201.79,1e-08]
[1756829809843,40.08,201.8,201.79,0.72000001]
[1756829810537,40.08,201.8,201.79,13.1558882]
[1756829810934,4.95397591,201.86,201.79,13.1558882]
[1756829811142,40.08,201.85,201.82,12.43588819]
[1756829811336,40.08,201.85,201.81,12.43588819]
[1756829811639,40.08,201.85,201.81,13.15588819]
[1756829811941,40.08,201.84,201.81,13.15588819]
[1756829812143,40.08,201.84,201.79,12.4358882]
[1756829812144,52.51588819,201.84,201.79,12.4358882]
[1756829812345,13.09588819,201.83,201.79,1e-08]
[1756829812557,52.51588819,201.82,201.79,1e-08]
[1756829813450,12.43588819,201.83,201.79,0.72000001]
[1756829813646,40.08,201.81,201.79,1e-08]
[1756829814164,40.08,201.81,201.79,0.72000001]
[1756829814456,0.28432314,201.84,201.79,13.1558882]
[1756829814654,40.08,201.83,201.79,13.1558882]
[1756829814851,0.06,201.87,201.82,12.43588819]
[1756829815039,40.08,201.86,201.85,12.43588819]
[1756829815239,40.08,201.86,201.84,12.43588819]
[1756829815439,40.08,201.85,201.84,12.43588819]
[1756829816152,40.08,201.85,201.81,12.43588819]
[1756829816544,0.06,201.87,201.83,12.43588819]
[1756829816762,40.08,201.86,201.85,12.43588819]
[1756829816974,0.06,201.87,201.85,13.15588819]
[1756829817260,0.06,201.87,201.86,13.15588819]
[1756829817435,40.14,201.87,201.86,13.15588819]
[1756829817638,0.06,201.87,201.86,13.15588819]
[1756829818560,0.06,201.87,201.86,5.67392846]
[1756829818744,0.06,201.87,201.86,18.10981665]
[1756829819140,0.06,201.87,201.86,31.84757223]
[1756829819639,0.06,201.87,201.86,27.6637823]
[1756829820462,0.06,201.87,201.86,13.92602672]
[1756829820662,0.06,201.87,201.86,107.64810544]
[1756829821538,0.06,201.87,201.86,114.66862455]
[1756829821843,0.06,201.87,201.86,112.68385763]
[1756829822047,0.06,201.87,201.86,114.66862454]
[1756829822250,0.06,201.9,201.87,0.42648471]
[1756829822449,0.06,202.02,201.95,0.14216157]
[1756829822666,14.2,202.02,201.99,30.95051851]
[1756829822870,0.06,202.02,202.01,8.25209826]
[1756829823973,0.06,202.02,202.01,8.97209826]
[1756829824349,0.06,202.02,202.01,22.70985384]
[1756829824566,0.06,202.02,202.01,27.66010382]
[1756829825271,0.06,202.02,202.01,8.97209826]
[1756829825477,0.06,202.02,202.01,13.92234824]
[1756829826151,0.06,202.02,202.01,8.25209826]
[1756829826552,0.06,202.02,202.01,8.97209826]
[1756829827676,0.06,202.02,202.01,13.92234824]
[1756829827888,0.06,202.02,202.01,5.67024998]
[1756829828074,0.06,202.02,202.01,13.92234824]
[1756829828247,0.06,202.02,202.01,27.66010382]
[1756829829062,0.06,202.02,202.01,13.92234824]
[1756829829557,0.06,202.02,202.01,8.97209826]
[1756829829762,0.06,202.02,202.01,8.25209826]
[1756829830077,0.06,202.02,202.01,8.97209826]
[1756829830660,0.06,202.02,202.0,26.0]
[1756829830862,0.06,202.02,202.01,8.25209826]
[1756829831783,0.73,202.02,201.99,8.25209826]
[1756829831964,0.73,202.02,202.01,8.25209826]
[1756829831965,0.06,202.02,202.01,8.25209826]
[1756829832564,0.06,202.02,201.98,0.68]
[1756829832768,0.06,202.02,201.98,5.63074265]
[1756829833086,0.73,202.02,201.99,8.25209826]
[1756829833472,0.06,202.02,201.99,8.25209826]
[1756829833688,0.67,202.01,201.99,8.25209826]
[1756829834577,0.67,202.01,201.98,8.25209826]
[1756829835175,8.31209826,202.02,201.97,26.0]
[1756829835376,8.92209826,202.0,201.92,0.68]
[1756829835595,8.25209826,201.97,201.9,13.59559401]
[1756829835892,8.25209826,201.95,201.86,0.68]
[1756829836071,8.92209826,201.94,201.89,8.25209826]
[1756829836277,48.96209826,201.93,201.84,0.68]
[1756829836587,13.20479995,201.91,201.86,0.03]
[1756829836794,4.95249831,201.92,201.86,8.28209826]
[1756829836959,40.71,201.91,201.87,8.25209826]
[1756829837160,0.28432314,201.96,201.87,8.25209826]
[1756829837161,0.67,201.96,201.9,8.25209826]
[1756829837367,0.67,201.96,201.93,8.25209826]
[1756829837580,0.67,201.95,201.91,8.25209826]
[1756829837783,4.95100033,201.98,201.92,8.25209826]
[1756829837973,40.04,201.97,201.94,8.25209826]
[1756829838174,40.04,201.98,201.96,8.25209826]
[1756829838373,0.67,201.97,201.91,26.0]
[1756829838594,5.62171549,201.96,201.88,5.63332774]
[1756829838779,0.67,201.95,201.88,30.95332774]
[1756829838975,0.67,201.95,201.9,8.25209826]
[1756829839181,0.67,201.94,201.9,8.25209826]
[1756829839986,0.67,201.99,201.93,8.25209826]
[1756829840201,0.67,201.99,201.86,0.03]
[1756829840202,8.25209826,201.94,201.86,0.03]
[1756829840502,8.25209826,201.92,201.86,8.28209826]
[1756829840705,40.04,201.92,201.89,8.25209826]
[1756829840883,40.04,201.93,201.91,8.25209826]
[1756829841197,40.04,201.93,201.89,0.68]
[1756829841198,40.04,201.96,201.92,8.25209826]
[1756829841710,8.25209826,201.98,201.92,8.25209826]
[1756829841885,8.25209826,201.98,201.93,8.25209826]
[1756829842080,40.04,201.97,201.93,8.25209826]
[1756829842285,40.04,201.97,201.89,26.68]
[1756829842286,48.29209826,201.97,201.92,8.25209826]
[1756829842472,53.24333664,201.97,201.92,8.25209826]
[1756829842671,53.24333664,201.97,201.9,8.25209826]
[1756829842672,8.25209826,201.96,201.9,8.25209826]
[1756829843406,0.67,201.97,201.92,8.25209826]
[1756829843576,33.14,201.96,201.93,8.25209826]
[1756829843778,33.14,201.96,201.89,4.95303858]
[1756829843779,41.39209826,201.97,201.89,5.63303858]
[1756829844117,41.39209826,201.97,201.92,8.25209826]
[1756829844271,0.67,201.96,201.92,8.25209826]
[1756829844482,40.04,201.96,201.92,8.25209826]
[1756829844800,40.71,201.96,201.92,8.25209826]
[1756829845197,40.71,201.96,201.9,5.63292852]
[1756829845400,8.25209826,201.95,201.9,8.25209826]
[1756829845781,8.92209826,201.95,201.9,8.25209826]
[1756829846000,48.29209826,201.96,201.89,26.0]
[1756829846206,4.95121377,201.98,201.88,4.95342134]
[1756829846207,40.71,201.95,201.9,8.25209826]
[1756829846382,48.96209826,201.95,201.9,13.20504374]
[1756829846582,40.71,201.95,201.9,8.25209826]
[1756829846809,40.04,201.95,201.91,0.68]
[1756829846981,40.04,201.95,201.92,8.25209826]
[1756829847308,40.04,201.95,201.91,8.93209826]
[1756829847794,40.04,201.95,201.91,8.25209826]
[1756829848896,40.04,201.95,201.92,8.25209826]
[1756829849094,40.04,201.95,201.91,8.25209826]
[1756829849299,45.66190274,201.95,201.91,8.25209826]
[1756829849612,0.67,201.94,201.9,8.25209826]
[1756829849823,0.67,201.93,201.89,34.25209826]
[1756829849990,0.67,201.93,201.89,8.25209826]
[1756829850391,8.92209826,201.93,201.86,31.66389612]
[1756829850628,8.25209826,201.91,201.86,0.03]
[1756829850909,4.95343768,201.88,201.86,0.03]
[1756829851108,0.67,201.92,201.87,8.93209826]
[1756829851405,40.02,201.91,201.9,8.25209826]
[1756829851785,40.02,201.91,201.89,8.25209826]
[1756829851990,40.02,201.91,201.87,8.25209826]
[1756829852190,8.25209826,201.89,201.86,0.03]
[1756829852691,8.92209826,201.89,201.86,0.03]
[1756829852903,0.67,201.89,201.86,0.03]
[1756829853312,0.67,201.88,201.86,0.03]
[1756829853518,5.62270251,201.91,201.86,0.03]
[1756829853725,40.02,201.87,201.86,0.03]
[1756829854121,48.94209826,201.87,201.86,0.03]
[1756829854433,49.2264214,201.87,201.86,0.03]
[1756829855104,14.16010446,201.87,201.86,0.03]
[1756829855292,54.18010446,201.87,201.86,0.03]
[1756829855693,5.62368306,201.87,201.86,0.03]
[1756829856027,0.28432314,201.91,201.86,0.03]
[1756829856200,5.01263548,201.92,201.87,8.25209826]
[1756829856401,40.04,201.9,201.88,8.25209826]
[1756829856702,40.04,201.9,201.86,8.96209826]
[1756829856894,40.04,201.9,201.86,8.28209826]
[1756829857093,0.73,201.92,201.87,8.25209826]
[1756829857321,0.73,201.92,201.91,8.25209826]
[1756829857322,0.06,201.92,201.91,8.25209826]
[1756829857496,40.1,201.92,201.91,8.25209826]
[1756829857901,40.1,201.92,201.9,8.25209826]
[1756829858229,40.1,201.92,201.89,8.25209826]
[1756829858427,45.05246491,201.92,201.87,0.68]
[1756829858626,40.1,201.92,201.89,8.25209826]
[1756829858829,0.67,201.91,201.86,0.03]
[1756829859041,5.01252572,201.92,201.87,8.93209826]
[1756829859199,40.04,201.91,201.88,8.25209826]
[1756829859610,40.04,201.91,201.87,8.25209826]
[1756829859926,8.25209826,201.88,201.86,0.03]
[1756829860225,48.29209826,201.87,201.86,0.03]
[1756829860441,48.96209826,201.87,201.86,0.03]
[1756829860651,49.2464214,201.87,201.86,0.03]
[1756829861341,67.93786004,201.87,201.86,0.03]
[1756829861702,5.9580062,201.87,201.86,0.03]
[1756829861901,54.25010446,201.87,201.86,0.03]
[1756829863002,67.98786004,201.87,201.86,0.03]
[1756829864028,19.69576178,201.87,201.86,0.03]
[1756829864235,27.94786004,201.87,201.86,0.03]
[1756829864532,67.98786004,201.87,201.86,0.03]
[1756829864829,53.53010446,201.87,201.86,0.03]
[1756829865738,30.95349533,201.88,201.86,0.03]
[1756829866027,4.95270169,201.91,201.87,8.25209826]
[1756829866230,40.04,201.9,201.86,8.95209826]
[1756829867043,8.97209826,201.89,201.86,0.03]
[1756829867355,8.25209826,201.87,201.86,0.03]
[1756829867519,40.04,201.87,201.86,0.03]
[1756829867943,40.04,201.87,201.86,8.28209826]
[1756829868137,4.95272252,201.91,201.86,8.95209826]
[1756829868337,40.04,201.9,201.88,8.25209826]
[1756829868543,40.04,201.89,201.88,8.25209826]
[1756829868945,40.04,201.89,201.88,8.92209826]
[1756829869828,40.04,201.89,201.87,8.25209826]
[1756829870243,4.95270169,201.91,201.88,8.92209826]
[1756829870549,40.04,201.9,201.89,0.67]
[1756829870739,0.06,201.92,201.89,8.92209826]
[1756829870951,40.04,201.9,201.86,0.03]
[1756829871251,40.04,201.9,201.86,4.9838688]
[1756829871459,40.04,201.9,201.87,0.67]
[1756829871753,40.04,201.9,201.88,0.67]
[1756829872128,40.04,201.9,201.89,8.25209826]
[1756829872458,0.06,201.92,201.89,8.92209826]
[1756829872626,0.06,201.92,201.91,8.25209826]
[1756829872827,0.06,201.92,201.91,8.92209826]
[1756829873756,0.06,201.92,201.91,13.87479995]
[1756829874840,0.06,201.92,201.91,8.92209826]
[1756829875243,0.06,201.92,201.91,13.87479995]
[1756829875445,0.06,201.92,201.91,8.25209826]
[1756829875637,0.06,201.92,201.91,8.92209826]
[1756829875954,0.06,201.92,201.91,8.25209826]
[1756829876455,0.06,201.92,201.91,8.92209826]
[1756829876867,0.06,201.92,201.87,5.62344902]
[1756829877040,0.06,201.92,201.91,8.25209826]
[1756829877536,0.06,201.92,201.91,8.92209826]
[1756829877738,0.06,201.92,201.91,8.25209826]
[1756829877940,0.06,201.92,201.91,8.92209826]
[1756829878839,0.06,201.92,201.91,13.87479995]
[1756829879669,0.06,201.92,201.91,8.92209826]
[1756829881663,0.06,201.92,201.91,18.07476552]
[1756829882468,0.06,201.92,201.91,5.62270169]
[1756829882662,0.06,201.92,201.91,18.07476552]
[1756829882967,0.06,201.92,201.91,5.62270169]
[1756829883165,0.06,201.92,201.91,31.8125211]
[1756829884661,0.06,201.92,201.91,57.8125211]
[1756829885255,0.06,201.92,201.91,32.09684424]
[1756829885564,0.06,201.92,201.91,31.8125211]
[1756829886839,0.06,201.92,201.91,32.09684424]
[1756829888938,0.06,201.95,201.94,39.73775558]
[1756829889143,0.06,201.95,201.94,52.18981941]
[1756829889336,0.06,201.95,201.94,53.14414255]
[1756829890070,0.06,201.95,201.94,93.14414255]
[1756829890549,0.06,202.02,201.95,14.02207872]
[1756829890751,0.06,202.02,202.01,12.45206383]
[1756829890949,0.06,202.02,202.01,17.40231381]
[1756829891275,0.06,202.02,202.01,31.80006939]
[1756829891485,0.06,202.05,202.04,39.73775558]
[1756829891648,0.06,202.05,202.04,92.47414255]
[1756829891847,0.06,202.07,202.05,14.02207872]
[1756829892069,0.06,202.07,202.06,52.18981941]
[1756829892257,0.06,202.07,202.06,52.84981941]
[1756829892970,0.06,202.07,202.06,58.08316759]
[1756829893196,0.06,202.07,202.06,98.06316759]
[1756829894152,0.06,202.07,202.06,58.08316759]
[1756829894477,0.06,202.07,202.06,98.06316759]
[1756829896572,0.06,202.07,202.06,58.08316759]
[1756829896767,0.06,202.07,202.06,97.77884445]
[1756829897674,0.06,202.07,202.06,97.11884445]
[1756829897870,0.06,202.07,202.06,97.77884445]
[1756829898276,0.06,202.07,202.06,97.75884445]
[1756829898960,0.06,202.07,202.06,97.09884445]
[1756829899161,0.06,202.07,202.06,97.75884445]
[1756829899570,0.06,202.07,202.06,97.09884445]
[1756829899773,0.06,202.07,202.06,97.75884445]
[1756829900382,0.06,202.07,202.06,85.30678062]
[1756829900587,0.06,202.07,202.06,43.40108887]
[1756829900761,0.06,202.07,202.06,38.45206383]
[1756829900964,0.06,202.07,202.06,78.41206383]
[1756829901202,0.06,202.07,202.06,38.45206383]
[1756829901372,0.76,202.07,202.06,38.45206383]
[1756829901570,0.76,202.07,202.04,5.02977929]
[1756829901779,0.7,202.06,202.04,5.02977929]
[1756829901975,0.7,202.05,202.03,39.96]
[1756829902195,0.7,202.05,202.01,4.95012391]
[1756829902196,5.00879435,202.07,202.04,12.45206383]
[1756829902704,0.7,202.06,201.99,39.59559401]
[1756829903016,0.7,202.05,202.01,12.45206383]
[1756829903160,0.7,202.04,201.98,39.96]
[1756829903358,0.7,202.03,202.01,12.45206383]
[1756829903588,0.7,202.02,202.01,12.45206383]
[1756829906374,5.00882345,202.07,202.01,12.45206383]
[1756829906574,0.7,202.03,201.98,4.95093153]
[1756829906896,0.7,202.03,202.01,0.03]
[1756829907066,0.7,202.02,202.01,0.03]
[1756829907661,13.15206383,202.02,202.01,0.03]
[1756829907880,13.43638697,202.02,202.01,0.03]
[1756829908286,45.87432809,202.02,202.01,0.03]
[1756829908483,58.32639192,202.02,202.01,0.03]
[1756829910700,26.0,201.99,201.98,0.03]
[1756829910987,78.39206383,201.99,201.98,0.03]
[1756829911189,39.15206383,201.99,201.98,0.03]
[1756829911378,79.09206383,201.99,201.98,0.03]
[1756829911578,66.64,201.99,201.98,0.03]
[1756829911892,79.11206383,201.99,201.98,0.03]
[1756829912288,79.09206383,201.99,201.98,0.03]
[1756829912485,39.15206383,201.99,201.98,0.03]
[1756829912668,84.04280396,201.99,201.98,0.03]
[1756829913274,4.9504768,202.01,201.98,0.03]
[1756829913575,5.65004179,202.02,201.98,12.48206383]
[1756829913900,39.94,202.02,201.98,0.03]
[1756829914271,39.94,202.02,201.99,12.45206383]
[1756829914470,40.64,202.02,201.98,0.03]
[1756829914666,13.15206383,202.06,202.01,12.45206383]
[1756829914892,0.06,202.07,202.05,12.45206383]
[1756829915073,0.06,202.07,201.99,4.95066532]
[1756829915074,0.06,202.07,202.06,12.45206383]
[1756829915764,0.06,202.07,202.06,13.11206383]
[1756829915971,0.06,202.07,202.06,0.66]
[1756829916207,0.06,202.07,202.06,13.11206383]
[1756829916409,0.06,202.07,202.05,12.45206383]
[1756829916979,0.06,202.07,202.06,12.45206383]
[1756829917779,0.76,202.07,202.04,12.45206383]
[1756829917984,13.21206383,202.07,202.01,26.0]
[1756829918180,53.15206383,202.07,202.01,12.45206383]
[1756829918490,40.0,202.07,202.03,12.45206383]
[1756829918889,44.94891543,202.07,202.03,12.45206383]
[1756829919071,58.10097926,202.07,202.02,12.45206383]
[1756829919474,57.40097926,202.07,202.01,12.45206383]
[1756829919681,13.15206383,202.06,202.01,12.45206383]
[1756829920096,13.15206383,202.05,201.98,0.69]
[1756829920403,13.15206383,202.05,201.98,12.48206383]
[1756829920404,0.7,202.05,201.98,12.48206383]
[1756829920588,12.45206383,202.04,201.98,0.03]
[1756829920787,12.45206383,202.02,201.98,0.03]
[1756829921002,12.45206383,202.0,201.98,0.03]
[1756829921303,12.45206383,201.99,201.98,0.03]
[1756829921497,13.14206383,202.0,201.98,0.03]
[1756829921877,13.14206383,201.99,201.98,0.03]
[1756829922779,18.09280396,201.99,201.98,0.03]
[1756829923797,32.11488268,201.99,201.98,0.03]
[1756829923984,5.64074013,201.99,201.98,0.03]
[1756829924310,58.03280396,201.99,201.98,0.03]
[1756829924687,72.05488268,201.99,201.98,0.03]
[1756829926005,5.7829017,201.99,201.98,0.03]
[1756829926205,4.95074013,201.99,201.98,0.03]
[1756829926503,44.87074013,201.99,201.98,0.03]
[1756829926705,58.01280396,201.99,201.98,0.03]
[1756829928996,72.03488268,201.99,201.98,0.03]
[1756829929907,72.03488268,201.99,201.96,0.03]
[1756829930119,52.47414255,201.97,201.96,0.03]
[1756829930289,14.02207872,201.96,201.95,1e-08]
[1756829930492,67.08414255,201.96,201.95,1e-08]
[1756829930919,72.03561808,201.96,201.95,1e-08]
[1756829931790,26.0,201.89,201.86,0.03]
[1756829932007,78.65638697,201.89,201.86,0.03]
[1756829932211,66.89432314,201.89,201.86,0.03]